Cogmind - Beta 16.1 @@@ ROGUE MODE // 2026.03.15 @ 16:21:49 Player: star Result: Destroyed by Y-54 Guardian with Gatling Laser Performance ------------- Evolutions (3) 1500 Regions Visited (12) 2400 Robots Destroyed (104) 520 Value Destroyed (5225) 5225 Prototype IDs (28) 560 Alien Tech Used (0) 0 Bonus (3410) 3410 TOTAL SCORE: 13615 Bonus ------- High Alert Combat Kills 814 Follower Combat Kills 696 Entered Garrisons 600 Used RIF Installer 1000 Aligned with FarCom 300 Cogmind --------- Core Integrity 0/700 Matter 265/300 Energy 99/100 System Corruption 25% Temperature Cool (12) Movement Core (50) Location -7/Garrison Parts ------- > --- POWER (1) -------- (None) > --- PROPULSION (3) --- (None) > --- UTILITY (6) ------ Advanced Targeting Computer Relay Coupler [Duelist] (28) Relay Coupler [Duelist] (27) > --- WEAPON (3) ------- (None) > --- INVENTORY (5) ---- Medium Matter Pod (100) Relay Coupler [NC] (49) Relay Coupler [Specialist] (26) Relay Coupler [Heavy] (17) Plasma Cutter Peak State ------------ > --- POWER ------------ Light Angular Momentum Engine > --- PROPULSION ------- Light Treads Light Treads Carbon-fiber Leg > --- UTILITY ---------- Large Storage Unit Salvage Targeting Computer Advanced Targeting Computer Advanced Targeting Computer Advanced Targeting Computer > --- WEAPON ----------- Improved EM Pulse Cannon Improved EM Pulse Cannon Powered Hammer > --- INVENTORY -------- Light Nuclear Core Advanced Heat Sink Medium Matter Pod Advanced Targeting Computer Improved Weapon Shielding Hacking Suite Relay Coupler [Duelist] Relay Coupler [Specialist] High-powered Tractor Beam Latent Energy Streamer Mini Grenade Launcher Remote Datajack Remote Datajack Plasma Cutter [Rating: 39] Favorites ----------- Power Light Nuclear Core Engine Improved Ion Engine Power Core Light Nuclear Core Propulsion Carbon-fiber Leg Treads Light Treads Leg Carbon-fiber Leg Wheel Wheel Hover Unit Combat Airjet Utility Salvage Targeting Computer Device Recoil Stabilizer Storage Small Storage Unit Processor Salvage Targeting Computer Hackware Relay Coupler [Grunt] Protection Weapon Shielding Weapon Improved Medium Laser Energy Gun Improved Medium Laser Energy Cannon Improved EM Pulse Cannon Ballistic Gun Heavy Assault Rifle Launcher Mini Grenade Launcher Special Weapon Remote Datajack Impact Weapon Powered Hammer Piercing Weapon Makeshift Spear Build | -11 -10 -10 -9 -9 -9 -8 -8 -8 -8 -8 -7 -7 ------- Run | Yrd Mat Min Mat Min Exi Min Mat Gar Mat Gar Fac Gar Slots Evolved 6 | . . . 2 . . . 2 . . . 2 . Power . | . . . . . . . . . . . . . Propulsion 1 | . . . . . . . . . . . 1 . Utility 4 | . . . 2 . . . 2 . . . . . Weapon 1 | . . . . . . . . . . . 1 . Parts Attached 93 | 7 . 4 19 3 . . 12 3 5 18 5 17 Power 10 | 1 . . 1 . . . 2 . . 3 . 3 Engine 4 | 1 . . 1 . . . . . . . . 2 Core 6 | . . . . . . . 2 . . 3 . 1 Reactor . | . . . . . . . . . . . . . Propulsion 26 | 3 . 2 4 2 . . 1 . 1 7 . 6 Treads 6 | 1 . . . . . . . . . 3 . 2 Leg 16 | . . . 4 2 . . 1 . 1 4 . 4 Wheel 3 | 2 . 1 . . . . . . . . . . Hover 1 | . . 1 . . . . . . . . . . Flight . | . . . . . . . . . . . . . Utility 29 | 1 . 1 7 . . . 4 2 2 4 1 7 Device 5 | . . 1 1 . . . 2 . 1 . . . Storage 3 | 1 . . 1 . . . . . 1 . . . Processor 7 | . . . 3 . . . 1 . . 3 . . Hackware 8 | . . . . . . . . . . . 1 7 Protection 6 | . . . 2 . . . 1 2 . 1 . . Artifact . | . . . . . . . . . . . . . Weapon 28 | 2 . 1 7 1 . . 5 1 2 4 4 1 Energy Gun 11 | 2 . . 3 . . . 2 . 1 3 . . Energy Cannon 3 | . . . . . . . 1 . . . 2 . Ballistic Gun 9 | . . 1 4 . . . 1 1 1 1 . . Ballistic Cannon . | . . . . . . . . . . . . . Launcher 1 | . . . . . . . 1 . . . . . Special Weapon 2 | . . . . . . . . . . . 1 1 Impact Weapon 1 | . . . . . . . . . . . 1 . Slashing Weapon . | . . . . . . . . . . . . . Piercing Weapon 1 | . . . . 1 . . . . . . . . Special Melee Weapon . | . . . . . . . . . . . . . Unidentified Prototypes 5 | . . . 2 . . . . . 3 . . . Corrupted Parts 2 | . . . . . . . . . . 1 . 1 System Corruption 12 | . . . . . . . . . . 4 . 8 Parts Lost 48 | . . 2 8 1 . . 4 . 2 9 2 20 Power 10 | . . . 1 1 . . 1 . 1 2 1 3 Propulsion 14 | . . 1 2 . . . . . . 3 1 7 Utility 11 | . . . 2 . . . 2 . 1 2 . 4 Weapon 13 | . . 1 3 . . . 1 . . 2 . 6 Highest Loss Streak 6 | . . 2 3 1 . . 2 . 1 2 1 6 To Critical Strikes . | . . . . . . . . . . . . . Average Backups 9 | . 1 . 6 7 8 8 7 7 8 11 13 14 Power . | . . . . . . . . . . . . 1 Propulsion . | . . . 1 1 . . . 1 1 2 1 . Utility 4 | . . . 4 3 3 3 2 3 3 5 8 9 Weapon 2 | . 1 . . 3 3 4 2 2 2 3 2 1 Tool/Special . | . . . . . . . . . . . . . Unused Backups 20 | . . . 2 . . . . 2 . 1 1 14 Power 1 | . . . . . . . . . . . . 1 Propulsion 2 | . . . 1 . . . . . . 1 . . Utility 14 | . . . 1 . . . . 2 . . 1 10 Weapon . | . . . . . . . . . . . . . Tool/Special 3 | . . . . . . . . . . . . 3 Average Slot Usage (%) 90 | . 85 87 92 88 88 88 97 99 97 93 93 74 Engine 2 | . 14 14 8 6 . . . . . . . . Core 4 | . . . . . . . 8 9 8 8 6 2 Treads 3 | . . . . . . . . . . 4 21 5 Leg 12 | . . . 16 15 22 22 18 18 18 12 . 11 Wheel 1 | . 28 15 1 . . . . . . . . . Device 4 | . . 12 5 . . . 6 9 4 9 1 . Storage 9 | . 14 14 7 11 11 11 9 9 11 9 7 6 Processor 23 | . . . 21 22 22 22 27 27 27 28 30 22 Hackware 2 | . . . . . . . . . . . 3 10 Protection 5 | . . . 8 11 11 11 9 8 9 2 . . Energy Gun 8 | . 28 15 10 11 11 11 9 9 9 12 2 . Energy Cannon 1 | . . . . . . . . . . . 10 3 Ballistic Gun 6 | . . 10 11 11 . . 7 9 9 5 4 . Peak Build Rating 39 | 6 6 14 21 19 19 19 35 29 33 35 37 39 Average Rating 24 | 4 6 9 15 16 18 19 27 28 29 30 33 30 On Entrance 19 | . 6 6 14 16 18 19 19 25 29 33 30 34 Avg Prop Armor Cover (%) 8 | 6 6 4 4 . . . . . . 7 . 11 Naked Turns . | . . . . . . . . . . . . . Heaviest Build 46 | 12 12 13 19 19 11 11 27 21 38 34 42 46 Greatest Support 60 | 20 10 12 20 26 26 26 28 28 28 40 60 40 Greatest Overweight (x) 6 | 2 1 1 1 1 . . . . 1 2 1 6 Average Overweight (x) . | . 1 . . . . . . . . . . . Largest Inventory Capacity 15 | 8 8 8 8 8 8 8 8 8 15 15 15 15 Average Capacity 10 | 7 8 8 7 8 8 8 8 8 11 15 15 14 Most Carried 15 | 1 1 5 8 8 8 8 8 8 9 14 15 15 Average Carried 9 | . 1 . 6 7 8 8 7 7 8 11 13 14 Final Capacity 15 | 8 8 8 8 8 8 8 8 8 15 15 15 5 Final Carried 15 | 1 1 5 7 8 8 8 8 8 9 14 15 5 Class Distribution -------------------- 47% | Mutant 27% | Scavenger-Mutant 11% | Commander-Mutant 9% | Bothacker-Mutant 3% | Scavenger-Gunner Dominant Class ---------------- Mutant | -10/Materials Mutant | -10/Mines Scavenger-Mutant | -9/Materials Mutant | -9/Mines Mutant | -9/Exiles Mutant | -8/Mines Mutant | -8/Materials Commander-Mutant | -8/Garrison Commander-Mutant | -8/Materials Scavenger-Mutant | -8/Garrison Scavenger-Gunner | -7/Factory Bothacker-Mutant | -7/Garrison Resources | -11 -10 -10 -9 -9 -9 -8 -8 -8 -8 -8 -7 -7 ----------- Run | Yrd Mat Min Mat Min Exi Min Mat Gar Mat Gar Fac Gar Matter Collected 2400 | 205 . 197 342 101 . . 213 . 273 511 161 397 Remotely . | . . . . . . . . . . . . . Salvage Created 4478 | . . 129 874 114 . . 484 . 767 1118 513 479 Parts 218 | . . 7 54 5 . . 24 . 25 56 21 26 Haulers Intercepted 8 | . . . 2 . . . 1 . 4 . 1 . Recyclers Shooed 3 | . . . 1 . . . . . 2 . . . Parts Field Recycled . | . . . . . . . . . . . . . Retrieved Matter . | . . . . . . . . . . . . . Parts Self-Destructed . | . . . . . . . . . . . . . Prevented . | . . . . . . . . . . . . . Parts Restored . | . . . . . . . . . . . . . Kills | -11 -10 -10 -9 -9 -9 -8 -8 -8 -8 -8 -7 -7 ------- Run | Yrd Mat Min Mat Min Exi Min Mat Gar Mat Gar Fac Gar Combat Hostiles Destroyed 90 | . . 4 17 3 . . 7 . 7 26 7 19 Melee 4 | . . . . . . . . . . . . 4 Guns 54 | . . 4 16 3 . . 7 . 7 16 1 . Cannons 3 | . . . . . . . . . . . 3 . AOE 26 | . . . . . . . . . . 10 3 13 Classes Destroyed 15 | . . 4 5 . . . 1 . 2 1 2 . Builder 2 | . . 1 . . . . . . 1 . . . Tunneler 1 | . . 1 . . . . . . . . . . Hauler 8 | . . . 2 . . . 1 . 4 . 1 . Recycler 2 | . . . . . . . . . 2 . . . Carrier 1 | . . . . . . . . . . . 1 . Mechanic 1 | . . . . . . . . . . . 1 . Operator 1 | . . . . . . . . . 1 . . . Swarmer 17 | . . . 4 . . . . . . 3 . 10 Grunt 40 | . . 2 7 1 . . 4 . 5 13 3 5 Brawler 1 | . . . 1 . . . . . . . . . Duelist 4 | . . . 1 1 . . . . . . 2 . Sentry 15 | . . . 4 . . . 3 . 1 5 1 1 Hunter 6 | . . . . . . . 1 . 1 3 . 1 Programmer 5 | . . . . . . . . . . 2 1 2 Assembled 3 | . . 2 . 1 . . . . . . . . Best Kill Streak 8 | . . 1 8 2 . . 2 . 2 5 6 5 Combat Bots Only 8 | . . 1 8 2 . . 2 . 2 5 4 5 Max Kills in Single Turn 5 | . . 1 1 1 . . 1 . 1 3 5 2 Gunslinging . | . . . . . . . . . . . . . Exploded 3 | . . . . . . . . . . 3 3 2 Melee 1 | . . . . . . . . . . . . 1 Uniques/NPCs Destroyed . | . . . . . . . . . . . . . Combat | -11 -10 -10 -9 -9 -9 -8 -8 -8 -8 -8 -7 -7 -------- Run | Yrd Mat Min Mat Min Exi Min Mat Gar Mat Gar Fac Gar Hostile Shots Fired 672 | . . 32 101 16 . . 52 . 11 116 80 264 Missed 217 | . . 10 23 6 . . 12 . 2 31 24 109 Hits 455 | . . 22 78 10 . . 40 . 9 85 56 155 Melee 5 | . . . 1 . . . . . . . . 4 Projectile 450 | . . 22 77 10 . . 40 . 9 85 56 151 Critical Strikes 21 | . . . 5 1 . . 4 . 1 8 . 2 Actively Blocked 3 | . . . 2 . . . . . . 1 . . Damage Taken 6209 | . . 304 1034 148 . . 669 . 240 1286 558 1970 Core 1343 | . . 34 175 41 . . 61 . 43 280 82 627 Absorbed by Shields 48 | . . . . . . . . . . . . 48 Redirected to Shielding 309 | . . . 91 8 . . 5 . 35 170 . . Core Remaining (%) 65 | 100 . 86 . . . 46 . . . 30 . . Volleys Fired 305 | . . 22 70 15 . . 33 4 36 76 17 32 Largest 3 | . . 2 2 2 . . 2 2 2 2 3 2 Hottest 161 | . . 90 88 79 . . 79 93 93 100 161 138 Shots Fired 559 | . . 39 130 30 . . 63 8 71 145 36 37 Gun 493 | . . 39 130 30 . . 60 8 71 136 19 . Cannon 24 | . . . . . . . . . . . 13 11 Launcher 27 | . . . . . . . 3 . . 9 . 15 Special 15 | . . . . . . . . . . . 4 11 Kinetic 231 | . . 7 70 15 . . 30 4 36 57 12 . Thermal 228 | . . 22 60 15 . . 30 4 35 55 7 . Explosive 27 | . . . . . . . 3 . . 9 . 15 Electromagnetic 58 | . . 10 . . . . . . . 24 13 11 Robot Hit Streak 27 | . . 11 22 5 . . 15 . 24 13 27 15 Robot Miss Streak 7 | . . 6 7 2 . . 2 . 2 2 1 1 Penetration Max 1 | . . . . . . . . . 1 . . . Secondary Targets 5 | . . . 1 . . . 2 . 2 . . . Max Gunslinging Chain 1 | . . . 1 . . . 1 . 1 . . . Shots Hit Robots 381 | . . 23 85 10 . . 47 . 53 91 26 46 Core Hits 178 | . . 9 27 5 . . 20 . 25 48 15 29 Critical Kills 1 | . . . . . . . . . . . . 1 Critical Parts Destroyed 6 | . . . 3 . . . . . . . . 3 Critical Strikes 16 | . . 2 4 1 . . 2 . 2 . 1 4 Burn 9 | . . 2 1 1 . . 2 . 2 . 1 . Destroy 3 | . . . 3 . . . . . . . . . Smash 4 | . . . . . . . . . . . . 4 Melee Attacks 47 | . . . . 1 . . . . . . 6 40 Impact 46 | . . . . . . . . . . . 6 40 Slashing . | . . . . . . . . . . . . . Piercing 1 | . . . . 1 . . . . . . . . Sneak Attacks . | . . . . . . . . . . . . . Combat Hostiles . | . . . . . . . . . . . . . Follow-up Attacks . | . . . . . . . . . . . . . Damage Inflicted 9358 | . . 361 1321 159 . . 776 . 1002 2341 1040 2358 Guns 5352 | . . 288 1321 159 . . 776 . 1002 1597 209 . Cannons 340 | . . . . . . . . . . . 169 171 Explosions 3071 | . . 73 . . . . . . . 744 662 1592 Melee 595 | . . . . . . . . . . . . 595 Ramming . | . . . . . . . . . . . . . Kinetic 2457 | . . 50 719 90 . . 365 . 514 615 104 . Thermal 3406 | . . 272 602 69 . . 411 . 488 747 767 50 Explosive 2132 | . . . . . . . . . . 744 . 1388 Electromagnetic 768 | . . 39 . . . . . . . 235 169 325 Impact 595 | . . . . . . . . . . . . 595 Slashing . | . . . . . . . . . . . . . Piercing . | . . . . . . . . . . . . . Highest Corruption 25 | . . . . . . . . . . 7 2 25 Average Corruption 5 | . . . . . . . . . . 4 2 7 Corruption Purged . | . . . . . . . . . . . . . Corruption Blocked . | . . . . . . . . . . . . . Effects 54 | . . . . . . . . . . 13 4 37 Message Errors 12 | . . . . . . . . . . 4 1 7 Matter Fused 11 | . . . . . . . . . . . . 11 Heat Flow Errors 8 | . . . . . . . . . . 3 1 4 Energy Discharges 6 | . . . . . . . . . . . . 6 Data Loss (minor) 5 | . . . . . . . . . . 3 . 2 Data Loss (major) 2 | . . . . . . . . . . . 1 1 Misfires 5 | . . . . . . . . . . 3 1 1 Alerts 2 | . . . . . . . . . . . . 2 Misdirections 2 | . . . . . . . . . . . . 2 Weapon Failures 1 | . . . . . . . . . . . . 1 Overload Shots . | . . . . . . . . . . . . . Overflow Damage 278 | . . . . . . . . . . 15 21 242 Projectiles 12 | . . . . . . . . . . . . 12 Explosions 124 | . . . . . . . . . . 15 21 88 Melee 142 | . . . . . . . . . . . . 142 Knockbacks 1 | . . . . . . . . . . . . 1 Impact 1 | . . . . . . . . . . . . 1 Kinetic . | . . . . . . . . . . . . . Secondary . | . . . . . . . . . . . . . Self-Inflicted Damage 300 | . . . . . . . 54 . . 47 . 199 Shots 10 | . . . . . . . 3 . . 1 . 6 Rammed . | . . . . . . . . . . . . . Targets Rammed . | . . . . . . . . . . . . . Kicked . | . . . . . . . . . . . . . Crushed . | . . . . . . . . . . . . . Highest Temperature 357 | . . 357 207 60 . . 118 21 120 171 250 272 Average Temperature 55 | . . 185 57 23 . . 35 14 39 36 63 63 Received Heat Transfer 1626 | . . 111 366 39 . . 297 . 63 351 144 255 Effects 4 | . . 3 . . . . . . . . 1 . Energy Bleed 1 | . . . . . . . . . . . 1 . Interference 2 | . . 2 . . . . . . . . . . Damage (minor) 1 | . . 1 . . . . . . . . . . Siege Activations . | . . . . . . . . . . . . . Martial Activations . | . . . . . . . . . . . . . Shielding Activations . | . . . . . . . . . . . . . Robots Disrupted . | . . . . . . . . . . . . . Combat Hostiles . | . . . . . . . . . . . . . Robots Corrupted 2 | . . . . . . . . . . . . 2 Combat Hostiles 2 | . . . . . . . . . . . . 2 Parts Fried 6 | . . . . . . . . . . 3 . 3 Impact Corruptions 5 | . . . . . . . . . . . . 5 Robots Melted 1 | . . . 1 . . . . . . . . . Combat Hostiles 1 | . . . 1 . . . . . . . . . Parts Melted 20 | . . 1 7 . . . 1 . 2 7 2 . Heat Transferred 6914 | . . 840 1480 222 . . 1036 . 1184 1369 733 50 Parts Sabotaged . | . . . . . . . . . . . . . Parts Stolen . | . . . . . . . . . . . . . Parts Stripped . | . . . . . . . . . . . . . Power Chain Reactions 2 | . . 1 . . . . . . . . . 1 Latent Energy Used 138 | . . . . . . . . . . . . 138 LE Corruption 3 | . . . . . . . . . . . . 3 Alert | -11 -10 -10 -9 -9 -9 -8 -8 -8 -8 -8 -7 -7 ------- Run | Yrd Mat Min Mat Min Exi Min Mat Gar Mat Gar Fac Gar Maximum Alert Level 4 | . . . . . . . 1 3 2 4 3 3 Low Security (%) 39 | 100 100 100 100 100 . 100 98 2 . . . . Level 1 9 | . . . . . . . 1 59 29 2 . . Level 2 31 | . . . . . . . . 29 70 38 99 46 Level 3 16 | . . . . . . . . 9 . 42 . 53 Level 4 2 | . . . . . . . . . . 16 . . Level 5 . | . . . . . . . . . . . . . High Security . | . . . . . . . . . . . . . Max Security . | . . . . . . . . . . . . . Peak Influence 1250 | . . 36 160 50 . . 201 702 632 1250 707 845 Initial 655 | . . . . 13 . . . 115 341 400 655 409 Average 373 | . . 2 71 2 . . 77 396 478 758 601 619 Influence Increases 4266 | . . 96 464 50 . . 422 587 577 1000 304 766 Destroy 0b10 Robot/C 2160 | . . 40 340 40 . . 260 . 300 520 160 500 Destroy 0b10 Robot/NC 110 | . . 10 10 . . . 5 . 70 . 15 . Destroy Leader 374 | . . 10 84 10 . . 92 . 96 20 42 20 Allied During Kill 181 | . . . . . . . 35 . 110 3 1 32 Successful Hack 41 | . . . . . . . 4 37 . . . . Disable Machine 90 | . . . . . . . 15 . . . 60 15 Anti-Garrison Action 950 | . . . . . . . . 550 . 300 . 100 Destroy Structure 165 | . . 6 . . . . 11 . 1 52 26 69 Lose Combat Pursuer 195 | . . 30 30 . . . . . . 105 . 30 Influence Decreases 3471 | . . 96 430 84 . . 245 62 663 366 969 556 Entered New Map 1431 | . . . . 21 . . . 62 361 216 595 176 Time Decay 1220 | . . 76 360 53 . . 175 . 222 . 334 . Lost Part 460 | . . 20 70 10 . . 30 . 20 90 20 200 Lost Ally 360 | . . . . . . . 40 . 60 60 20 180 Squads Dispatched 11 | . . . 1 . . . 4 . 3 . 3 . Investigation 1 | . . . 1 . . . . . . . . . Extermination 2 | . . . . . . . . . . . 2 . Reinforcement 5 | . . . . . . . 2 . 3 . . . Assault 1 | . . . . . . . . . . . 1 . Garrison 2 | . . . . . . . 2 . . . . . Intercept . | . . . . . . . . . . . . . Searches Triggered . | . . . . . . . . . . . . . Construction Impeded . | . . . . . . . . . . . . . Haulers Reinforced . | . . . . . . . . . . . . . Active Scanning Responses . | . . . . . . . . . . . . . Cargo Convoy Interrupts . | . . . . . . . . . . . . . Stealth | -11 -10 -10 -9 -9 -9 -8 -8 -8 -8 -8 -7 -7 --------- Run | Yrd Mat Min Mat Min Exi Min Mat Gar Mat Gar Fac Gar Distress Signals 8 | . . 1 . 1 . . 2 . 4 . . . Communications Jammed . | . . . . . . . . . . . . . Distress Signals . | . . . . . . . . . . . . . Times Spotted 160 | . . 8 28 5 . . 22 . 22 29 10 36 Peak Tracking Total 8 | . . 2 8 2 . . 6 . 4 6 4 7 Tactical Retreats 10 | . . 3 1 . . . . . . 4 . 2 Traps | -11 -10 -10 -9 -9 -9 -8 -8 -8 -8 -8 -7 -7 ------- Run | Yrd Mat Min Mat Min Exi Min Mat Gar Mat Gar Fac Gar Traps Triggered 15 | . . . 1 . . . . 2 . 6 2 4 Indirectly . | . . . . . . . . . . . . . Trap Hack Attempts . | . . . . . . . . . . . . . Triggered . | . . . . . . . . . . . . . Disarmed . | . . . . . . . . . . . . . Reprogrammed . | . . . . . . . . . . . . . Reused . | . . . . . . . . . . . . . Traps Extracted . | . . . . . . . . . . . . . Installed . | . . . . . . . . . . . . . Triggered . | . . . . . . . . . . . . . Machines | -11 -10 -10 -9 -9 -9 -8 -8 -8 -8 -8 -7 -7 ---------- Run | Yrd Mat Min Mat Min Exi Min Mat Gar Mat Gar Fac Gar Machines Disabled 13 | . . . . . . . 1 4 . 3 4 1 Max in Single Turn 4 | . . . . . . . 1 1 . 1 4 1 Garrison Relay 7 | . . . . . . . . 4 . 3 . . Machines Repaired . | . . . . . . . . . . . . . Machines Dismantled . | . . . . . . . . . . . . . Machines Sabotaged . | . . . . . . . . . . . . . Overloaded Fab Kills . | . . . . . . . . . . . . . Hacking | -11 -10 -10 -9 -9 -9 -8 -8 -8 -8 -8 -7 -7 --------- Run | Yrd Mat Min Mat Min Exi Min Mat Gar Mat Gar Fac Gar Machines Accessed 8 | . . . . . 1 . 1 3 1 1 1 . Terminals 4 | . . . . . . . . 3 . 1 . . Fabricators . | . . . . . . . . . . . . . Repair Stations . | . . . . . . . . . . . . . Recycling Units . | . . . . . . . . . . . . . Scanalyzers . | . . . . . . . . . . . . . Garrison Access 3 | . . . . . . . 1 . 1 . 1 . Total Hacks 15 | . . . . . 1 . 2 7 1 3 1 . Successful 7 | . . . . . 1 . 1 3 1 . 1 . Failed 8 | . . . . . . . 1 4 . 3 . . Catastrophic 2 | . . . . . . . . 1 . 1 . . Database Lockouts . | . . . . . . . . . . . . . Manual 1 | . . . . . 1 . . . . . . . Terminals 10 | . . . . . . . . 7 . 3 . . Fabricators . | . . . . . . . . . . . . . Repair Stations . | . . . . . . . . . . . . . Recycling Units . | . . . . . . . . . . . . . Scanalyzers . | . . . . . . . . . . . . . Garrison Access 4 | . . . . . . . 2 . 1 . 1 . Terminal Hacks 4 | . . . . . 1 . . 3 . . . . Open Door 1 | . . . . . . . . 1 . . . . Patrol Navigation 1 | . . . . . . . . 1 . . . . Security Stations 1 | . . . . . . . . 1 . . . . Proto ID Catalog 1 | . . . . . 1 . . . . . . . Fabricator Hacks . | . . . . . . . . . . . . . Repair Station Hacks . | . . . . . . . . . . . . . Recycling Unit Hacks . | . . . . . . . . . . . . . Scanalyzer . | . . . . . . . . . . . . . Garrison Access Hacks 3 | . . . . . . . 1 . 1 . 1 . Unlock Access 3 | . . . . . . . 1 . 1 . 1 . Unauthorized Hacks . | . . . . . . . . . . . . . Terminals . | . . . . . . . . . . . . . Fabricators . | . . . . . . . . . . . . . Repair Stations . | . . . . . . . . . . . . . Recycling Units . | . . . . . . . . . . . . . Scanalyzers . | . . . . . . . . . . . . . Garrison Access . | . . . . . . . . . . . . . Data Cores Recovered . | . . . . . . . . . . . . . Used . | . . . . . . . . . . . . . Hacking Detections 4 | . . . . . . . . 3 . 1 . . Full Trace Events 2 | . . . . . . . . 1 . 1 . . Feedback Events . | . . . . . . . . . . . . . Feedback Blocked . | . . . . . . . . . . . . . Robot Schematics Acquired . | . . . . . . . . . . . . . Robots Built . | . . . . . . . . . . . . . Authchips . | . . . . . . . . . . . . . Time . | . . . . . . . . . . . . . Total Robot Build Rating . | . . . . . . . . . . . . . Part Schematics Acquired . | . . . . . . . . . . . . . Parts Built . | . . . . . . . . . . . . . Authchips . | . . . . . . . . . . . . . Time . | . . . . . . . . . . . . . Total Part Build Rating . | . . . . . . . . . . . . . Part Studies Acquired . | . . . . . . . . . . . . . Parts Repaired . | . . . . . . . . . . . . . Time . | . . . . . . . . . . . . . Parts Recycled . | . . . . . . . . . . . . . Recycled Matter . | . . . . . . . . . . . . . Retrieved Matter . | . . . . . . . . . . . . . Retrieved Components . | . . . . . . . . . . . . . Parts Scanalyzed . | . . . . . . . . . . . . . Part Schematics Acquired . | . . . . . . . . . . . . . Parts Damaged . | . . . . . . . . . . . . . Bothacking | -11 -10 -10 -9 -9 -9 -8 -8 -8 -8 -8 -7 -7 ------------ Run | Yrd Mat Min Mat Min Exi Min Mat Gar Mat Gar Fac Gar Used RIF Installer 2 | . . . . . . . . 1 . 1 . . Coupler Efficiency 1 | . . . . . . . . . . 1 . . Robots Hacked 12 | . . . . . . . . . . . 3 9 Non-combat . | . . . . . . . . . . . . . Combat 12 | . . . . . . . . . . . 3 9 Robot Hacks Applied 14 | . . . . . . . . . . . 4 10 parse_system 2 | . . . . . . . . . . . 1 1 find_shortcuts 1 | . . . . . . . . . . . . 1 find_garrison 1 | . . . . . . . . . . . 1 . formatsys_high 10 | . . . . . . . . . . . 2 8 Relay Couplers Released 26 | . . . . . . . . 16 . 10 . . Machine Destruction 26 | . . . . . . . . 16 . 10 . . Attached 8 | . . . . . . . . . . . 1 7 Fabnet Peak Effective % . | . . . . . . . . . . . . . Robots Rewired 7 | . . . . . . . . 7 . . . . Allies Hacked . | . . . . . . . . . . . . . Hacks Repelled . | . . . . . . . . . . . . . Allies | -11 -10 -10 -9 -9 -9 -8 -8 -8 -8 -8 -7 -7 -------- Run | Yrd Mat Min Mat Min Exi Min Mat Gar Mat Gar Fac Gar Total Allies 20 | . . . . 3 . . . 7 . . 2 8 Largest Group 7 | . . . . 3 3 3 3 7 7 3 2 3 Highest-Rated Group 129 | . . . . 40 40 40 40 129 129 68 45 49 Highest-Rated Ally 32 | . . . . 16 16 16 16 31 31 31 29 32 Total Orders . | . . . . . . . . . . . . . Ally Attacks 200 | . . . . . . . 35 . 109 11 12 33 Total Damage 2907 | . . . . . . . 421 . 1495 162 165 664 Kills 28 | . . . . . . . 6 . 15 . 1 6 Allies Corrupted 1 | . . . . . . . . . . . . 1 Allies Melted . | . . . . . . . . . . . . . Intel | -11 -10 -10 -9 -9 -9 -8 -8 -8 -8 -8 -7 -7 ------- Run | Yrd Mat Min Mat Min Exi Min Mat Gar Mat Gar Fac Gar Active Infowar (turns) . | . . . . . . . . . . . . . Robot Analysis Total . | . . . . . . . . . . . . . Derelict Logs Recovered 2 | . . . . 2 . . . . . . . . Drone Launches . | . . . . . . . . . . . . . Drone Recoveries . | . . . . . . . . . . . . . Exploration | -11 -10 -10 -9 -9 -9 -8 -8 -8 -8 -8 -7 -7 ------------- Run | Yrd Mat Min Mat Min Exi Min Mat Gar Mat Gar Fac Gar Turns Passed 8200 | 62 8 679 889 919 307 50 481 1016 470 1210 756 1353 Spaces Moved 4278 | 49 9 249 450 494 244 33 294 747 233 510 348 618 Core 27 | 9 . . 3 . . . . . . . . 15 Treads 726 | 10 . . . . . . . . . 169 348 199 Legs 3208 | . . . 418 494 244 33 294 747 233 341 . 404 Wheels 290 | 30 9 222 29 . . . . . . . . . Hover 27 | . . 27 . . . . . . . . . . Flight . | . . . . . . . . . . . . . Fastest Speed 50 | 50 95 80 80 120 120 120 120 120 120 120 160 50 Average Speed 142 | 103 95 101 131 148 120 120 120 120 151 178 174 165 Slowest Speed 350 | 160 95 155 190 190 120 120 120 120 190 260 240 350 Overloaded Moves . | . . . . . . . . . . . . . Propulsion Burnouts . | . . . . . . . . . . . . . Robots Hopped . | . . . . . . . . . . . . . Potential Cave-ins . | . . . . . . . . . . . . . Cave-ins Triggered . | . . . . . . . . . . . . . Exploration Rate (%) 39 | 4 2 45 32 90 64 8 23 92 32 62 11 46 Regions Visited 12 Branch Regions 4 Pre-discovered Areas 1 | . . . . 1 . . . . . . . . Known Exits Taken 3 | . . . . . . . 1 . 1 . 1 . Unknown Exits Taken 7 | 1 1 1 1 1 1 1 . . . . . . Scrap Searched 1 | . . . . 1 . . . . . . . . Spaces Dug 7 | . . . . . . . . . . . 2 5 Terrain Destroyed 124 | . . 9 . . . . 29 . . 22 28 36 Melee 7 | . . . . . . . . . . . 2 5 Projectile . | . . . . . . . . . . . . . AOE 117 | . . 9 . . . . 29 . . 22 26 31 Terrain Rammed . | . . . . . . . . . . . . . Walls Destroyed . | . . . . . . . . . . . . . Machines Disabled . | . . . . . . . . . . . . . Actions | -11 -10 -10 -9 -9 -9 -8 -8 -8 -8 -8 -7 -7 --------- Run | Yrd Mat Min Mat Min Exi Min Mat Gar Mat Gar Fac Gar Total 5738 | 56 8 634 614 649 258 43 354 859 285 676 455 847 Wait 837 | . . 356 63 133 13 11 9 29 8 41 70 104 Move 4269 | 48 8 248 449 493 243 32 294 746 233 509 348 618 Hop . | . . . . . . . . . . . . . Pick Up 46 | 1 . 4 7 2 1 . 3 3 1 10 4 10 Fast Attach 38 | 6 . 2 8 1 . . 4 . 2 5 1 9 Attach 18 | . . 1 1 . . . 2 1 . 4 2 7 Detach 2 | . . . . . . . . . . . . 2 Swap 57 | 1 . 1 10 2 . . 7 2 5 17 5 7 Drop 28 | . . . 6 2 1 . 2 3 . 4 1 9 Fire 305 | . . 22 70 15 . . 33 4 36 76 17 32 Melee 47 | . . . . 1 . . . . . . 6 40 Ram . | . . . . . . . . . . . . . Kick . | . . . . . . . . . . . . . Crush . | . . . . . . . . . . . . . Escape Stasis 17 | . . . . . . . . . . 10 . 7 Rewire 74 | . . . . . . . . 71 . . 1 2 Trap . | . . . . . . . . . . . . . Miscellaneous . | . . . . . . . . . . . . . Route ------- -11/Scrapyard -10/Materials -10/Mines -9/Materials -9/Mines (discovered 3 exits: *Mat x2 / *Exi) -9/Exiles -8/Mines -8/Materials (discovered 2 exits: *Sto / Gar) -8/Garrison (discovered 3 exits: *Mat x3) -8/Materials (discovered 3 exits: *Fac / *Sto / Gar) -8/Garrison (discovered 2 exits: *Fac x2) -7/Factory (discovered 2 exits: [*Fac] / Gar) -7/Garrison (discovered 1 exit: [*Fac]) History --------- Turn | Location | Event 39 | -11/Scrapyard | Discovered new exit (range 13) 63 | -11/Scrapyard | Entered Materials 63 | -10/Materials | Discovered new exit (range 7) 71 | -10/Materials | Entered Mines 175 | -10/Mines | Assembled infested the area 310 | -10/Mines | Build established: Mutant 736 | -10/Mines | Discovered new exit (range 15) 750 | -10/Mines | Entered Materials 750 | -9/Materials | Evolved 2 slots: Utility x2 862 | -9/Materials | Lost 3 parts (1n1u1w) 872 | -9/Materials | Destroyed 8 combat bots 1130 | -9/Materials | Build established: Scavenger-Mutant 1340 | -9/Materials | Discovered new exit (range 16) 1639 | -9/Materials | Entered Mines 1650 | -9/Mines | Met a Derelict bent on vengeance 1667 | -9/Mines | Build established: Mutant 1725 | -9/Mines | Learned location of 1 exit from Materials 1750 | -9/Mines | Discovered new exit (range 15) 1778 | -9/Mines | Joined a pair of Derelicts in attacking an 0b10 outpost 1846 | -9/Mines | Learned location of Zion (-6) 1861 | -9/Mines | Discovered new exit (range 9) 1965 | -9/Mines | Excavation squad dispatched 1965 | -9/Mines | A large section of the Mines collapsed 2208 | -9/Mines | Core integrity fell below 50% 2336 | -9/Mines | Assisted by bots powering up and referring to "LRC-V3" 2541 | -9/Mines | A weapon hastily lodged in a ceiling crevice suddenly fell to the ground 2555 | -9/Mines | Discovered new exit (range 3) 2558 | -9/Mines | Entered Exiles 2558 | -9/Exiles | Accompanied by 3 allies 2588 | -9/Exiles | Met 8R-AWN 2605 | -9/Exiles | Met EX-HEX 2640 | -9/Exiles | Met EX-BIN 2657 | -9/Exiles | Aligned with FarCom system 2658 | -9/Exiles | Given EX-Vault access code 2699 | -9/Exiles | Opened EX-Vault 2708 | -9/Exiles | Found Latent Energy Streamer 2736 | -9/Exiles | Warned to stay clear of 0b10 Research branches 2774 | -9/Exiles | Met EX-DEC 2851 | -9/Exiles | Discovered new exit (range 11) 2865 | -9/Exiles | Left Exiles lab with Latent Energy Streamer 2865 | -9/Exiles | Entered Mines 2865 | -8/Mines | Accompanied by 3 allies 2893 | -8/Mines | Discovered new exit (range 9) 2915 | -8/Mines | Entered Materials 2915 | -8/Materials | Accompanied by 3 allies 2915 | -8/Materials | Evolved 2 slots: Utility x2 2916 | -8/Materials | Identified exit to Storage 3263 | -8/Materials | Garrison activated, responded to threat 3396 | -8/Materials | Identified exit to Garrison 3396 | -8/Materials | Entered Garrison 3396 | -8/Garrison | Discovered recently destroyed garrison 3711 | -8/Garrison | Garrison Relay disabled 3788 | -8/Garrison | Discovered new exit (range 12) 3894 | -8/Garrison | Installed Relay Interface Framework 3902 | -8/Garrison | Discovered new exit (range 13) 4019 | -8/Garrison | Learned Materials security intel 4028 | -8/Garrison | Garrison Relay disabled 4041 | -8/Garrison | Garrison Relay disabled 4052 | -8/Garrison | Build established: Commander-Mutant 4186 | -8/Garrison | Discovered new exit (range 12) 4277 | -8/Garrison | Garrison Relay disabled 4412 | -8/Garrison | Entered Materials 4412 | -8/Materials | Accompanied by 7 allies 4412 | -8/Materials | Discovered exit to Storage (range 7) 4491 | -8/Materials | Lost 3 allies 4626 | -8/Materials | Discovered new exit (range 10) 4882 | -8/Materials | Identified exit to Garrison 4882 | -8/Materials | Entered Garrison 4882 | -8/Garrison | Accompanied by 3 allies 4964 | -8/Garrison | Triggered checkpoint 4979 | -8/Garrison | Build established: Mutant 4984 | -8/Garrison | Lost 3 allies 5161 | -8/Garrison | Garrison Relay disabled 5250 | -8/Garrison | Triggered checkpoint 5295 | -8/Garrison | Core integrity fell below 50% 5466 | -8/Garrison | Discovered new exit (range 8) 5614 | -8/Garrison | Triggered checkpoint 5621 | -8/Garrison | Triggered checkpoint 5624 | -8/Garrison | Build established: Scavenger-Mutant 5696 | -8/Garrison | Triggered checkpoint 5807 | -8/Garrison | Discovered new exit (range 12) 5881 | -8/Garrison | Expanded RIF knowledge: Coupler Efficiency 5976 | -8/Garrison | Garrison Relay disabled 6092 | -8/Garrison | Entered Factory 6092 | -7/Factory | Evolved 2 slots: Propulsion x1, Weapon x1 6492 | -7/Factory | First assault squad dispatched 6569 | -7/Factory | Discovered new exit (range 12) 6848 | -7/Factory | Identified exit to Garrison 6848 | -7/Factory | Entered Garrison 6848 | -7/Garrison | Accompanied by 1 ally 6962 | -7/Garrison | Triggered checkpoint 6986 | -7/Garrison | Build established: Mutant 7419 | -7/Garrison | Triggered checkpoint 7476 | -7/Garrison | Triggered checkpoint 7480 | -7/Garrison | Build established: Bothacker-Mutant 7504 | -7/Garrison | Triggered checkpoint 7547 | -7/Garrison | Lost 4 parts (2n2w) 7661 | -7/Garrison | System corruption reached 10% 7870 | -7/Garrison | Triggered checkpoint 7873 | -7/Garrison | Core integrity fell below 50% 7939 | -7/Garrison | Lost 4 allies 8049 | -7/Garrison | Lost 4 parts (4u) 8117 | -7/Garrison | Discovered new exit (range 11) 8181 | -7/Garrison | Core integrity fell below 20% 8201 | -7/Garrison | Destroyed by Y-54 Guardian with Gatling Laser Last Messages --------------- 08154_ An alarm sounds. 08156_ System corrupted: Heat flow error (+108). 08164_ Guardian 4a destroyed. 08166_ Aluminum Leg destroyed. 08166_ Remote Datajack destroyed. 08167_ Carbon-fiber Leg destroyed. 08170_ Aluminum Leg destroyed. 08174_ System corrupted: Matter fused (-6). 08177_ Y-54 Guardian destroyed. 08188_ Lgt. Nuclear Core destroyed. 08189_ Dropped Lrg. Storage Unit. 08189_ Dropped Latent Energy Streamer. 08192_ System corrupted: Heat flow error (+163). 08193_ Y-54 Guardian misfires. 08194_ Y-54 Guardian suffers critical hit (Smash). 08194_ Destroyed Imp. Deuterium Engine. 08194_ Y-54 Guardian system corrupted by crushing effect. 08194_ P-70 Sage resets Y-54 Guardian, system corruption cleaned. 08195_ Powered Hammer destroyed. 08196_ P-70 Sage misfires. Map ----- +----------------------------------------------------+ | ?????????????????????????????????????????????????? | | ?????????????????????????????????????????????????? | | ????????????????????"?"??????????????????????????? | | ????????????????????"?"??????????????????????????? | | ????????????????????"?"??????????????????????????? | | ????????????????????"""??????????????????????????? | | ?????????????????????????????????????????????????? | | ?????????????????????????????????????????????????? | | ?????????????????????????????????????????????????? | | ?????????????????????????????????????????????????? | | ?????????????????????????????????????????????????? | | ????????????????????????###??????????????????????? | | ????????????????????????# ??????????????????????? | | ????????????????????????# ###????????????????????? | | ???????????????###????### # #????????????????????? | | ????????????####"#????# ; ; ?????????????????????? | | ????????????# ##????# ;!%#### ######???????????? | | ????????????# < ########;Y[!! + #?????????? | | ????????????# *=!###### ####?????????### | | ????????????# !p#???????????????????# | | ????????????#############!!#???????????????????# % | | ????????????????????????#!|#???????????????????#= | | ????????????????????????#!!#?????????????????### | | ????????????????????????#] #?????????????????# # | | ????????????????????????# #?????????????????# | | ????????????????????????#@ #?????????????####### | | ????????????????????????# #?????????????# ## | | ????????????????????????# #????????###### ## [ | | ????????????????????????# ########## % | | ????????????????????????# [ | | ????????????????????????# | | ????????????????????????############# ## # | | ????????????????????????????????????# ## # | | ????????????????????????????????????" | | ???????????????????????????????????C" [ | | ????????????????????????????????????" ^ ^ | | ????????????????????????????????????" ^ | | ????????????????????????????????????# ## ^^ ## | | ???????????????????????????????###### ##^^^ | | ????????????????????????????? %! | | ????????????????????????????? | | ???????????????????????????????###### %= | | ????????????????????????????????????## ## #### | | ?????????????????????????????????????# ##[ #??? | | ?????????????????????????????????????# ?####[#??? | | ?????????????????????????????????????# ?????# ## | | ?????????????????????????????????????#??????# | | ????????????????????????????????????????????#### | | ???????????????????????????????????????????????# | | ???????????????????????????????????????????????# | +----------------------------------------------------+ Best States ------------- Heat Dissipation 56 Energy Generation 18 Energy Capacity 265 Matter Stores 300 Matter Capacity 300 Sight Range 16 Terrain Scan Density 10 Armor Coverage 150 Weapon Shielding 66 Evasion (%) 55 Targeting Accuracy 24 Recoil Reduction 4 Salvage Targeting 2 Relay Coupler Types 2 Relay Coupler Value 56 Item Schematics ----------------- None Robot Schematics ------------------ None Fabricated ------------ Nothing Repaired ---------- Nothing Studied --------- None Alien Tech Used ----------------- None Achievements -------------- Hack The Planet Preemptive Strike Challenges ------------ None Game ------ Seed CloakingElectrostormReactor Manual? 0 Play Time 00:58:05 Cumulative 173.9 hours Start 2026.03.15 @ 14:07:24 End 2026.03.15 @ 16:21:49 Sessions 1 Manual Loads 0 Difficulty Rogue Special Mode None Game No. 294 Rogue 294 Adventurer 0 Explorer 0 Win Type - Total 1 Types 1/0/0/0/0/0/0/0/0/0 Lore% 56 Gallery% 56 Achievement% 39 Wizard Run 0 Options --------- Layout 0 ASCII 0 Keyboard 1 Movement Numpad Keybinds 0 Fullscreen 2 Font 18/SmallcapsGlow Map View 76x50 Zoom Use 0% Tactical HUD 1 Map Filters NONE Filters NONE Steam 1 RUN: d661311d-a068-4c1c-ac55-a799c0b78dbd